fUSD/lending_fUSD_20240107
["ID","MTS","AMOUNT","RATE_DAILY","PERIOD"]
[310695653,1704647455847,-150.0,0.0003492,7]
[310695654,1704647455857,-2440.29,0.0003493,2]
[310695655,1704647455866,-6112.481116,0.00034931,2]
[310695656,1704647455875,-40195.500295,0.00034931,2]
[310695657,1704647455885,-330.11117785,0.00034934,14]
[310695658,1704647455894,-155.76493732,0.00034954,14]
[310695659,1704647455903,-156.8327423,0.00034957,14]
[310695660,1704647455913,-30129.0,0.0003499,3]
[310695661,1704647455922,-500.0,0.00034997,2]
[310695662,1704647455931,-150.0,0.00034999,2]
[310695663,1704647455940,-2440.29,0.00034999,2]
[310695664,1704647455950,-100000.0,0.00035,5]
[310695665,1704647455960,-245.287094,0.00035,7]
[310695666,1704647455969,-245.287084,0.00035,7]
[310695667,1704647455980,-151.0,0.00035,7]
[310695668,1704647455989,-155.0,0.00035,2]
[310695669,1704647455998,-1194.88906965,0.00035,2]
[310695670,1704647456008,-5522.0275858,0.00035,4]
[310695671,1704647456021,-150.0,0.00035,7]
[310695672,1704647456030,-1480.04650595,0.00035,2]
[310695673,1704647456040,-16404.83531666,0.00035,2]
[310695674,1704647456049,-200.84117549,0.00035,5]
[310695675,1704647456059,-176.80571003,0.00035,6]
[310695676,1704647456068,-10000.0,0.00035,2]
[310695677,1704647456077,-151.02040454,0.00035,2]
[310695678,1704647456086,-1876.17139509,0.00035,14]
[310695679,1704647456096,-185.29469489,0.00035,4]
[310695680,1704647456106,-454.18317421,0.00035,4]
[310695681,1704647456115,-22267.42103531,0.00035,4]
[310695682,1704647456124,-622.95539241,0.00035,4]
[310695683,1704647456134,-155.307693,0.00035,4]
[310695684,1704647456143,-155.79195637,0.00035,4]
[310695685,1704647456152,-200000.0,0.00035,2]
[310695686,1704647456162,-500.0,0.00035,7]
[310695687,1704647456172,-500.0,0.00035,7]
[310695688,1704647456182,-500.0,0.00035,7]
[310695689,1704647456192,-500.0,0.00035,7]
[310695690,1704647456202,-1428.3157335,0.00035,4]
[310695691,1704647456212,-57284.50639054,0.00035,7]
[310695692,1704647456221,-1000.0,0.00035,5]
[310695693,1704647456231,-3000.0,0.00035,2]
[310695694,1704647456240,-208.28417865,0.00035,2]
[310695695,1704647456250,-500.0,0.00035,3]
[310695696,1704647456260,-1000.0,0.00035,3]
[310695697,1704647456270,-156.36853742,0.00035,2]
[310695698,1704647456279,-1000.0,0.00035,3]
[310695699,1704647456289,-150.0,0.00035,8]
[310695700,1704647456299,-150.0,0.00035,8]
[310695701,1704647456308,-150.0,0.00035,8]
[310695702,1704647456318,-150.0,0.00035,8]
[310695703,1704647456328,-150.0,0.00035,8]
[310695704,1704647456338,-150.0,0.00035,8]
[310695705,1704647456348,-150.0,0.00035,8]
[310695706,1704647456362,-150.0,0.00035,8]
[310695707,1704647456372,-150.0,0.00035,8]
[310695708,1704647456382,-150.0,0.00035,8]
[310695709,1704647456393,-150.0,0.00035,8]
[310695710,1704647456402,-150.0,0.00035,8]
[310695711,1704647456412,-202.276061,0.00035,8]
[310695712,1704647456422,-1000.0,0.00035,2]
[310695713,1704647456433,-150.0,0.00035,30]
[310695714,1704647456443,-1000.0,0.00035,14]
[310695715,1704647456453,-158.19184009,0.00035002,14]
[310695716,1704647456463,-155.80831799,0.00035004,14]
[310695717,1704647456474,-3000.0,0.0003501,2]
[310695718,1704647456484,-3000.0,0.0003502,2]
[310695719,1704647456494,-3000.0,0.0003503,2]
[310695720,1704647456504,-161.95627694,0.00035036,14]
[310695721,1704647456514,-1310.33,0.00035038,2]
[310695722,1704647456524,-400.66,0.00035038,2]
[310695723,1704647456534,-938.59,0.00035038,2]
[310695724,1704647456545,-801.32,0.00035038,2]
[310695725,1704647456555,-5194.634259,0.0003504,2]
[310695726,1704647456569,-155.80831799,0.00035058,14]
[310695727,1704647456578,-2440.29,0.00035067,2]
[310695728,1704647456590,-7640.601396,0.00035068,2]
[310695729,1704647456600,-50244.375369,0.00035068,2]
[310695730,1704647456610,-154.91150368,0.00035079,14]
[310695731,1704647456620,-156.8327423,0.00035085,14]
[310695732,1704647456630,-182.19558738,0.00035113,14]
[310695733,1704647456641,-154.03566752,0.00035117,14]
[310695734,1704647456651,-293.55,0.00035167,2]
[310695735,1704647456661,-156.8327423,0.00035169,14]
[310695736,1704647456671,-161.15323196,0.00035173,14]
[310695737,1704647456682,-9436.0,0.0003519,3]
[310695738,1704647456692,-330.11117785,0.00035196,14]
[310695739,1704647456701,-1400.72,0.000352,3]
[310695740,1704647456714,-1400.72,0.000352,3]
[310695741,1704647456724,-1400.72,0.000352,3]
[310695742,1704647456735,-1400.72,0.000352,3]
[310695743,1704647456745,-1400.72,0.000352,3]
[310695744,1704647456755,-1400.72,0.000352,3]
[310695745,1704647456765,-1400.72,0.000352,3]
[310695746,1704647456774,-1400.72,0.000352,3]
[310695747,1704647456784,-1400.72,0.000352,3]
[310695748,1704647456794,-1400.72,0.000352,3]
[310695749,1704647456805,-1400.72,0.000352,3]
[310695750,1704647456815,-1400.72,0.000352,3]
[310695751,1704647456826,-1400.72,0.000352,3]
[310695752,1704647456836,-1400.72,0.000352,3]
[310695753,1704647456847,-1400.72,0.000352,3]
[310695754,1704647456861,-1400.72,0.000352,3]
[310695755,1704647456871,-1400.72,0.000352,3]
[310695756,1704647456884,-1400.72,0.000352,3]
[310695757,1704647456894,-1400.72,0.000352,3]
[310695758,1704647456905,-1400.72,0.000352,3]
[310695759,1704647456915,-150.0,0.000352,30]
[310695760,1704647456926,-176.66666667,0.00035236,14]
[310695761,1704647456936,-4960.16,0.00035269,4]
[310695762,1704647456947,-18133.59,0.00035269,4]
[310695763,1704647456957,-10804.27,0.00035269,4]
[310695764,1704647456968,-41826.28,0.00035269,4]
[310695765,1704647456977,-23628.31,0.00035269,4]
[310695766,1704647456988,-28874.48,0.00035269,4]
[310695767,1704647456999,-5443.46,0.00035269,4]
[310695768,1704647457010,-208133.78,0.00035269,4]
[310695769,1704647457020,-52212.52,0.00035269,4]
[310695770,1704647457030,-60698.67,0.00035269,4]
[310695771,1704647457040,-205.44,0.00035269,4]
[310695772,1704647457050,-155.2540555,0.00035287,14]
[310695773,1704647457060,-6220.0,0.0003529,3]
[310695774,1704647457070,-204.10979335,0.00035299,14]
[310695775,1704647457081,-100494.19030093,0.000353,3]
[310695776,1704647457094,-156.8327423,0.00035328,14]
[310695777,1704647457105,-10696.841954,0.00035342,2]
[310695778,1704647457115,-70342.125517,0.00035342,2]
[310695779,1704647457125,-150.0,0.00035348,120]
[310695780,1704647457136,-432.29,0.00035366,2]
[310695781,1704647457145,-500.0,0.0003537,2]
[310695782,1704647457155,-204.10979335,0.00035378,14]
[310695783,1704647457165,-150.0,0.000354,30]
[310695784,1704647457175,-500.0,0.000354,120]
[310695785,1704647457186,-156.5361,0.000354,14]
[310695786,1704647457197,-150.0,0.00035405,7]
[310695787,1704647457206,-155.2540555,0.00035414,14]
[310695788,1704647457217,-204.10979335,0.00035421,14]
[310695789,1704647457226,-500.0,0.0003543,10]
[310695790,1704647457237,-330.11117785,0.00035432,14]
[310695791,1704647457247,-156.5361,0.00035454,14]
[310695792,1704647457257,-1024.81,0.00035459,2]
[310695793,1704647457267,-150.0,0.00035472,2]
[310695794,1704647457276,-150.0,0.00035474,7]
[310695795,1704647457286,-150.0,0.00035495,120]
[310695796,1704647457296,-2000.0,0.000355,8]
[310695797,1704647457306,-656.49392619,0.000355,2]
[310695798,1704647457316,-1269.8961645,0.00035504,14]
[310695799,1704647457325,-9967.2178767,0.00035516,8]
[310695800,1704647457336,-732.73659301,0.00035516,7]
[310695801,1704647457345,-160.79524319,0.00035516,7]
[310695802,1704647457356,-155.80831799,0.0003552,14]
[310695803,1704647457366,-150.0,0.00035521,120]
[310695804,1704647457387,-204.10979335,0.00035523,14]
[310695805,1704647457398,-204.10979335,0.00035529,14]
[310695806,1704647457410,-2724.60909739,0.00035532,2]
[310695807,1704647457425,-161.15323196,0.00035561,14]
[310695808,1704647457435,-152.0,0.00035569,5]
[310695809,1704647457446,-161.15323196,0.0003557,14]
[310695810,1704647457466,-1902.46315614,0.00035587,2]
[310695811,1704647457477,-542221.0,0.0003559,3]
[310695812,1704647457489,-7923.536828,0.00035592,2]
[310695813,1704647457504,-180.4550703,0.00035592,2]
[310695814,1704647457514,-6697.0834875,0.00035592,2]
[310695815,1704647457532,-2440.29,0.00035599,2]
[310695816,1704647457544,-150.0,0.000356,30]
[310695817,1704647457554,-1000.0,0.000356,2]
[310695818,1704647457564,-750.0,0.000356,2]
[310695819,1704647457573,-3627.18611343,0.000356,2]
[310695820,1704647457583,-250.0,0.000356,2]
[310695821,1704647457593,-250.0,0.000356,2]
[310695822,1704647457604,-250.0,0.000356,2]
[310695823,1704647457613,-250.0,0.000356,2]
[310695824,1704647457623,-250.0,0.000356,2]
[310695825,1704647457633,-482.9,0.000356,2]
[310695826,1704647457643,-330.11117785,0.00035612,14]
[310695827,1704647457653,-3804.92631228,0.00035613,2]
[310695828,1704647457662,-2440.29,0.00035615,2]
[310695829,1704647457672,-2440.29,0.00035615,2]
[310695830,1704647457681,-2440.29,0.00035615,2]
[310695831,1704647457691,-2440.29,0.00035615,2]
[310695832,1704647457701,-2440.46579324,0.00035615,2]
[310695833,1704647457711,-13581.62384479,0.00035616,3]
[310695834,1704647457720,-208.28417865,0.00035616,2]
[310695835,1704647457730,-208.28417865,0.00035616,2]
[310695836,1704647457740,-156.36853742,0.00035616,2]
[310695837,1704647457751,-2000.0,0.00035616,2]
[310695838,1704647457761,-2000.0,0.00035616,2]
[310695839,1704647457771,-2000.0,0.00035616,2]
[310695840,1704647457782,-2000.0,0.00035616,2]
[310695841,1704647457791,-2000.0,0.00035616,2]
[310695842,1704647457801,-2000.0,0.00035616,2]
[310695843,1704647457811,-2000.0,0.00035616,2]
[310695844,1704647457821,-2000.0,0.00035616,2]
[310695845,1704647457830,-2000.0,0.00035616,2]
[310695846,1704647457841,-2000.0,0.00035616,2]
[310695847,1704647457852,-2000.0,0.00035616,2]
[310695848,1704647457863,-2000.0,0.00035616,2]
[310695849,1704647457872,-2000.0,0.00035616,2]
[310695850,1704647457882,-2000.0,0.00035616,2]
[310695851,1704647457892,-2000.0,0.00035616,2]
[310695852,1704647457902,-2000.0,0.00035616,2]
[310695853,1704647457911,-2000.0,0.00035616,2]
[310695854,1704647457921,-2000.0,0.00035616,2]
[310695855,1704647457931,-2000.0,0.00035616,2]
[310695856,1704647457941,-2000.0,0.00035616,2]
[310695857,1704647457951,-2000.0,0.00035616,2]
[310695858,1704647457961,-2000.0,0.00035616,2]
[310695859,1704647457971,-2000.0,0.00035616,2]
[310695860,1704647457981,-2000.0,0.00035616,2]
[310695861,1704647457991,-170.66056964,0.00035616,2]
[310695862,1704647458001,-500.0,0.00035616,2]
[310695863,1704647458011,-500.0,0.00035616,2]
[310695864,1704647458021,-500.0,0.00035616,2]
[310695865,1704647458031,-500.0,0.00035616,2]
[310695866,1704647458041,-500.0,0.00035616,2]
[310695867,1704647458050,-500.0,0.00035616,2]
[310695868,1704647458061,-500.0,0.00035616,2]
[310695869,1704647458071,-500.0,0.00035616,2]
[310695870,1704647458080,-500.0,0.00035616,2]
[310695871,1704647458090,-500.0,0.00035616,2]
[310695872,1704647458100,-500.0,0.00035616,2]
[310695873,1704647458110,-558.63510184,0.00035616,2]
[310695874,1704647458119,-508.94368898,0.00035616,2]
[310695875,1704647458129,-500.0,0.00035616,2]
[310695876,1704647458138,-227.07917873,0.00035616,2]
[310695877,1704647458148,-500.0,0.00035616,2]
[310695878,1704647458158,-500.0,0.00035616,2]
[310695879,1704647458168,-500.0,0.00035616,2]
[310695880,1704647458177,-501.11314376,0.00035616,2]
[310695881,1704647458187,-575.14576398,0.00035616,2]
[310695882,1704647458197,-500.0,0.00035616,2]
[310695883,1704647458206,-575.98606776,0.00035616,2]
[310695884,1704647458216,-500.0,0.00035616,2]
[310695885,1704647458225,-500.0,0.00035616,2]
[310695886,1704647458238,-500.0,0.00035616,2]
[310695887,1704647458249,-500.0,0.00035616,2]
[310695888,1704647458259,-615.16084025,0.00035616,2]
[310695889,1704647458269,-500.0,0.00035616,2]
[310695890,1704647458281,-500.0,0.00035616,2]
[310695891,1704647458291,-500.0,0.00035616,2]
[310695892,1704647458302,-587.24752515,0.00035616,2]
[310695893,1704647458313,-500.0,0.00035616,2]
[310695894,1704647458325,-500.0,0.00035616,2]
[310695895,1704647458336,-500.0,0.00035616,2]
[310695896,1704647458345,-500.0,0.00035616,2]
[310695897,1704647458357,-468.29370821,0.00035616,2]
[310695898,1704647458367,-500.0,0.00035616,2]
[310695899,1704647458376,-500.0,0.00035616,2]
[310695900,1704647458386,-535.27119783,0.00035616,2]
[310695901,1704647458396,-500.0,0.00035616,2]
[310695902,1704647458637,-500.0,0.00035616,2]
[310695903,1704647458648,-500.0,0.00035616,2]
[310695904,1704647458658,-335.56112426,0.00035616,2]
[310695905,1704647458668,-500.0,0.00035616,2]
[310695906,1704647458677,-500.0,0.00035616,2]
[310695907,1704647458687,-500.0,0.00035616,2]
[310695908,1704647458696,-500.0,0.00035616,2]
[310695909,1704647458705,-481.63480139,0.00035616,2]
[310695910,1704647458715,-304.59106892,0.00035616,2]
[310695911,1704647458725,-500.0,0.00035616,2]
[310695912,1704647458736,-500.0,0.00035616,2]
[310695913,1704647458745,-500.0,0.00035616,2]
[310695914,1704647458755,-527.99224318,0.00035616,2]
[310695915,1704647458765,-500.0,0.00035616,2]
[310695916,1704647458774,-500.0,0.00035616,2]
[310695917,1704647458784,-500.0,0.00035616,2]
[310695918,1704647458793,-292.02857644,0.00035616,2]
[310695919,1704647458803,-561.19774549,0.00035616,2]
[310695920,1704647458814,-500.0,0.00035616,2]
[310695921,1704647458827,-500.0,0.00035616,2]
[310695922,1704647458838,-500.0,0.00035616,2]
[310695923,1704647458848,-500.0,0.00035616,2]
[310695924,1704647458859,-500.0,0.00035616,2]
[310695925,1704647458869,-500.0,0.00035616,2]
[310695926,1704647458879,-500.0,0.00035616,2]
[310695927,1704647458888,-500.0,0.00035616,2]
[310695928,1704647458897,-500.0,0.00035616,2]
[310695929,1704647458906,-500.0,0.00035616,2]
[310695930,1704647458916,-500.0,0.00035616,2]
[310695931,1704647458925,-500.0,0.00035616,2]
[310695932,1704647458935,-500.0,0.00035616,2]
[310695933,1704647458945,-500.0,0.00035616,2]
[310695934,1704647458955,-500.0,0.00035616,2]
[310695935,1704647458965,-500.0,0.00035616,2]
[310695936,1704647458974,-500.0,0.00035616,2]
[310695937,1704647458983,-500.0,0.00035616,2]
[310695938,1704647458992,-570.68398493,0.00035616,2]
[310695939,1704647459002,-500.0,0.00035616,2]
[310695940,1704647459011,-500.0,0.00035616,2]
[310695941,1704647459020,-500.0,0.00035616,2]
[310695942,1704647459029,-500.0,0.00035616,2]
[310695943,1704647459039,-500.0,0.00035616,2]
[310695944,1704647459048,-500.0,0.00035616,2]
[310695945,1704647459058,-500.0,0.00035616,2]
[310695946,1704647459068,-500.0,0.00035616,2]
[310695947,1704647459077,-500.0,0.00035616,2]
[310695948,1704647459087,-500.0,0.00035616,2]
[310695949,1704647459097,-500.0,0.00035616,2]
[310695950,1704647459108,-500.0,0.00035616,2]
[310695951,1704647459117,-500.0,0.00035616,2]
[310695952,1704647459127,-500.0,0.00035616,2]
[310695953,1704647459136,-502.55728438,0.00035616,2]
[310695954,1704647459145,-500.0,0.00035616,2]
[310695955,1704647459155,-500.0,0.00035616,2]
[310695956,1704647459164,-500.0,0.00035616,2]
[310695957,1704647459174,-646.64,0.00035616,2]
[310695958,1704647459183,-500.0,0.00035616,2]
[310695959,1704647459193,-500.0,0.00035616,2]
[310695960,1704647459203,-500.0,0.00035616,2]
[310695961,1704647459212,-500.0,0.00035616,2]
[310695962,1704647459221,-500.0,0.00035616,2]
[310695963,1704647459231,-500.0,0.00035616,2]
[310695964,1704647459240,-500.0,0.00035616,2]
[310695965,1704647459251,-500.0,0.00035616,2]
[310695966,1704647459260,-500.0,0.00035616,2]
[310695967,1704647459271,-500.0,0.00035616,2]
[310695968,1704647459280,-500.0,0.00035616,2]
[310695969,1704647459290,-500.0,0.00035616,2]
[310695970,1704647459299,-500.0,0.00035616,2]
[310695971,1704647459310,-500.0,0.00035616,2]
[310695972,1704647459320,-500.0,0.00035616,2]
[310695973,1704647459330,-151.12,0.00035616,2]
[310695974,1704647459340,-500.0,0.00035616,2]
[310695975,1704647459350,-500.0,0.00035616,2]
[310695976,1704647459362,-500.0,0.00035616,2]
[310695977,1704647459371,-500.0,0.00035616,2]
[310695978,1704647459381,-500.0,0.00035616,2]
[310695979,1704647459391,-500.0,0.00035616,2]
[310695980,1704647459401,-500.0,0.00035616,2]
[310695981,1704647459410,-500.0,0.00035616,2]
[310695982,1704647459420,-500.0,0.00035616,2]
[310695983,1704647459430,-500.0,0.00035616,2]
[310695984,1704647459439,-500.0,0.00035616,2]
[310695985,1704647459448,-500.0,0.00035616,2]
[310695986,1704647459458,-384.14,0.00035616,2]
[310695987,1704647459467,-500.0,0.00035616,2]
[310695988,1704647459477,-500.0,0.00035616,2]
[310695989,1704647459486,-500.0,0.00035616,2]
[310695990,1704647459497,-500.0,0.00035616,2]
[310695991,1704647459507,-500.0,0.00035616,2]
[310695992,1704647459516,-500.0,0.00035616,2]
[310695993,1704647459525,-500.0,0.00035616,2]
[310695994,1704647459535,-500.0,0.00035616,2]
[310695995,1704647459544,-573.10974261,0.00035616,2]
[310695996,1704647459554,-500.0,0.00035616,2]
[310695997,1704647459564,-500.0,0.00035616,2]
[310695998,1704647459574,-500.81159834,0.00035616,2]
[310695999,1704647459584,-500.0,0.00035616,2]
[310696000,1704647459594,-500.0,0.00035616,2]
[310696001,1704647459605,-500.0,0.00035616,2]
[310696002,1704647459615,-628.29178127,0.00035616,2]
[310696003,1704647459625,-500.0,0.00035616,2]
[310696004,1704647459635,-500.0,0.00035616,2]
[310696005,1704647459645,-500.0,0.00035616,2]
[310696006,1704647459655,-500.0,0.00035616,2]
[310696007,1704647459666,-500.0,0.00035616,2]
[310696008,1704647459675,-500.0,0.00035616,2]
[310696009,1704647459685,-500.0,0.00035616,2]
[310696010,1704647459694,-500.0,0.00035616,2]
[310696011,1704647459704,-500.0,0.00035616,2]
[310696012,1704647459714,-500.0,0.00035616,2]
[310696013,1704647459725,-500.0,0.00035616,2]
[310696014,1704647459734,-500.0,0.00035616,2]
[310696015,1704647459745,-500.0,0.00035616,2]
[310696016,1704647459755,-316.44555767,0.00035616,2]
[310696017,1704647459765,-150.0,0.00035616,2]
[310696018,1704647459775,-150.0,0.00035616,2]
[310696019,1704647459785,-150.0,0.00035616,2]
[310696020,1704647459795,-500.0,0.00035616,2]
[310696021,1704647459805,-150.0,0.00035616,2]
[310696022,1704647459815,-150.0,0.00035616,2]
[310696023,1704647459825,-500.0,0.00035616,2]
[310696024,1704647459835,-500.0,0.00035616,2]
[310696025,1704647459845,-150.0,0.00035616,2]
[310696026,1704647459855,-500.0,0.00035616,2]
[310696027,1704647459866,-500.0,0.00035616,2]
[310696028,1704647459876,-150.0,0.00035616,2]
[310696029,1704647459885,-500.0,0.00035616,2]
[310696030,1704647459895,-150.0,0.00035616,2]
[310696031,1704647459906,-500.0,0.00035616,2]
[310696032,1704647459915,-500.0,0.00035616,2]
[310696033,1704647459925,-500.0,0.00035616,2]
[310696034,1704647459935,-500.0,0.00035616,2]
[310696035,1704647459945,-481.3889513,0.00035616,2]
[310696036,1704647459955,-500.0,0.00035616,2]
[310696037,1704647459965,-500.0,0.00035616,2]
[310696038,1704647459975,-239.61855841,0.00035616,2]
[310696039,1704647459985,-200.20482737,0.00035616,2]
[310696040,1704647459995,-500.0,0.00035616,2]
[310696041,1704647460006,-500.0,0.00035616,2]
[310696042,1704647460015,-500.0,0.00035616,2]
[310696043,1704647460025,-500.0,0.00035616,2]
[310696044,1704647460035,-500.0,0.00035616,2]
[310696045,1704647460045,-500.0,0.00035616,2]
[310696046,1704647460055,-571.65624834,0.00035616,2]
[310696047,1704647460064,-500.0,0.00035616,2]
[310696048,1704647460074,-490.29833182,0.00035616,2]
[310696049,1704647460084,-500.0,0.00035616,2]
[310696050,1704647460094,-500.0,0.00035616,2]
[310696051,1704647460104,-500.0,0.00035616,2]
[310696052,1704647460114,-500.0,0.00035616,2]
[310696053,1704647460123,-395.51146425,0.00035616,2]
[310696054,1704647460133,-500.0,0.00035616,2]
[310696055,1704647460142,-500.0,0.00035616,2]
[310696056,1704647460154,-500.0,0.00035616,2]
[310696057,1704647460164,-504.68876301,0.00035616,2]
[310696058,1704647460175,-500.0,0.00035616,2]
[310696059,1704647460186,-500.0,0.00035616,2]
[310696060,1704647460197,-500.0,0.00035616,2]
[310696061,1704647460207,-525.24215774,0.00035616,2]
[310696062,1704647460217,-500.0,0.00035616,2]
[310696063,1704647460227,-500.0,0.00035616,2]
[310696064,1704647460237,-608.60767847,0.00035616,2]
[310696065,1704647460246,-500.0,0.00035616,2]
[310696066,1704647460256,-500.0,0.00035616,2]
[310696067,1704647460265,-500.0,0.00035616,2]
[310696068,1704647460275,-500.0,0.00035616,2]
[310696069,1704647460284,-500.0,0.00035616,2]
[310696070,1704647460293,-500.0,0.00035616,2]
[310696071,1704647460303,-500.0,0.00035616,2]
[310696072,1704647460312,-500.0,0.00035616,2]
[310696073,1704647460321,-500.0,0.00035616,2]
[310696074,1704647460330,-500.0,0.00035616,2]
[310696075,1704647460341,-500.0,0.00035616,2]
[310696076,1704647460351,-500.0,0.00035616,2]
[310696077,1704647460363,-500.0,0.00035616,2]
[310696078,1704647460372,-500.0,0.00035616,2]
[310696079,1704647460383,-500.0,0.00035616,2]
[310696080,1704647460394,-500.0,0.00035616,2]
[310696081,1704647460404,-500.0,0.00035616,2]
[310696082,1704647460415,-500.0,0.00035616,2]
[310696083,1704647460425,-316.54240447,0.00035616,2]
[310696084,1704647460435,-233.26109699,0.00035616,2]
[310696085,1704647460447,-500.0,0.00035616,2]
[310696086,1704647460458,-500.0,0.00035616,2]
[310696087,1704647460468,-500.0,0.00035616,2]
[310696088,1704647460478,-500.0,0.00035616,2]
[310696089,1704647460490,-500.0,0.00035616,2]
[310696090,1704647460500,-500.0,0.00035616,2]
[310696091,1704647460510,-500.0,0.00035616,2]
[310696092,1704647460520,-500.0,0.00035616,2]
[310696093,1704647460530,-500.0,0.00035616,2]
[310696094,1704647460540,-500.0,0.00035616,2]
[310696095,1704647460552,-500.0,0.00035616,2]
[310696096,1704647460567,-500.0,0.00035616,2]
[310696097,1704647460578,-500.0,0.00035616,2]
[310696098,1704647460587,-500.0,0.00035616,2]
[310696099,1704647460598,-500.0,0.00035616,2]
[310696100,1704647460607,-500.0,0.00035616,2]
[310696101,1704647460617,-500.0,0.00035616,2]
[310696102,1704647460627,-500.0,0.00035616,2]
[310696103,1704647460638,-500.0,0.00035616,2]
[310696104,1704647460647,-574.5416453,0.00035616,2]
[310696105,1704647460657,-500.0,0.00035616,2]
[310696106,1704647460667,-532.83574337,0.00035616,2]
[310696107,1704647460676,-500.0,0.00035616,2]
[310696108,1704647460686,-500.0,0.00035616,2]
[310696109,1704647460695,-500.0,0.00035616,2]
[310696110,1704647460704,-500.0,0.00035616,2]
[310696111,1704647460714,-500.0,0.00035616,2]
[310696112,1704647460723,-500.0,0.00035616,2]
[310696113,1704647460732,-500.0,0.00035616,2]
[310696114,1704647460743,-500.0,0.00035616,2]
[310696115,1704647460753,-500.0,0.00035616,2]
[310696116,1704647460762,-500.0,0.00035616,2]
[310696117,1704647460771,-500.0,0.00035616,2]
[310696118,1704647460781,-571.49163909,0.00035616,2]
[310696119,1704647460790,-500.0,0.00035616,2]
[310696120,1704647460800,-500.0,0.00035616,2]
[310696121,1704647460810,-500.0,0.00035616,2]
[310696122,1704647460819,-500.0,0.00035616,2]
[310696123,1704647460838,-500.0,0.00035616,2]
[310696124,1704647460850,-500.0,0.00035616,2]
[310696125,1704647460859,-500.0,0.00035616,2]
[310696126,1704647460869,-500.0,0.00035616,2]
[310696127,1704647460879,-500.0,0.00035616,2]
[310696128,1704647460889,-500.0,0.00035616,2]
[310696129,1704647460899,-500.0,0.00035616,2]
[310696130,1704647460910,-500.0,0.00035616,2]
[310696131,1704647460920,-500.0,0.00035616,2]
[310696132,1704647460930,-500.0,0.00035616,2]
[310696133,1704647460939,-500.0,0.00035616,2]
[310696134,1704647460950,-532.50332359,0.00035616,2]
[310696135,1704647460961,-504.11459511,0.00035616,2]
[310696136,1704647460971,-500.0,0.00035616,2]
[310696137,1704647460982,-500.0,0.00035616,2]
[310696138,1704647460993,-500.0,0.00035616,2]
[310696139,1704647461005,-500.0,0.00035616,2]
[310696140,1704647461015,-500.0,0.00035616,2]
[310696141,1704647461025,-500.0,0.00035616,2]
[310696142,1704647461036,-503.14864384,0.00035616,2]
[310696143,1704647461047,-500.0,0.00035616,2]
[310696144,1704647461058,-500.0,0.00035616,2]
[310696145,1704647461069,-525.7832257,0.00035616,2]
[310696146,1704647461080,-500.0,0.00035616,2]
[310696147,1704647461090,-500.0,0.00035616,2]
[310696148,1704647461100,-500.0,0.00035616,2]
[310696149,1704647461111,-500.0,0.00035616,2]
[310696150,1704647461120,-517.1110716,0.00035616,2]
[310696151,1704647461130,-500.0,0.00035616,2]
[310696152,1704647461140,-509.91620346,0.00035616,2]